Workbook

Sheet MyB2B整批轉帳匯款
A1: MyB2B整批轉帳匯款媒體格式編輯
B2: 付款行通匯代碼 | C2: 0131276 | E2: 付款人帳號 | F2: 127035006788 | G2: 付款人統編 | H2: 53145032 | J2: 福居生命科技股份有限公司
B3: 收款行通匯代碼 | C3: 收款人帳號 (最多16位) | D3: 收款人統編 (最多10位) | E3: 實際匯款金額 ex:1元→1 | F3: 收款人姓名 (最多35個中文字) | G3: 是否電告 0:不通知 1:e-mail 2:FAX | H3: 電告設備號碼 X(50) | I3: 手續費方式 15:匯費外加 13:匯費內扣 | J3: 備註 (最多25個中文字)
B4: 注意事項 付款資料請輸入[C2]、[F2]、[H2]、[J2]欄位 收款資料請由[B6]欄位開始輸入；紅色字體為必要欄位，輸入完成後請按轉換『智慧型整批匯款格式』
A5: 範例 | B5: 0040037 | C5: 00400371234XXX | D5: 12345XXX | E5: 10000 | F5: 陳XX | G5: 1 | H5: sxxx@msa.hinet.net | I5: 15 | J5: 五月份貨款
B6: 7000021 | C6: 00612210158736 | D6: 72894400 | E6: 4374 | F6: 惠群 | G6: 1 | H6: b0936207788@gmail.com | I6: 13 | J6: 易殯網匯款流水號:R2021030201
B7: 1150096 | C7: 09650109175 | D7: Y120292399 | E7: 48000 | F7: 呂世豪 | G7: 1 | H7: kersonlu@hotmail.com | I7: 13 | J7: 易殯網匯款流水號:R2021030201
B8: 0131243 | C8: 124035005987 | D8: 29072729 | E8: 4171 | F8: 金寶數位科技禮儀有限公司 | G8: 1 | H8: fg53145032@hotmail.com | I8: 13 | J8: 易殯網匯款流水號:R2021030201
B9: 0061092 | C9: 717924075 | D9: 53172059 | E9: 4712 | F9: 慶豐祭祀用品有限公司 | G9: 1 | H9: chinglung@nrfs.com.tw | I9: 13 | J9: 易殯網匯款流水號:R2021030201

Sheet Etabs整批匯款
A1: Etabs整批匯款媒體格式編輯(rmldta.uwc)
A2: 5位公司代號 ex: 00100 | B2: 00100 | C2: 匯款人統編
A3: 請輸入[B2]後，按下[轉換為Etabs整批匯款格式]按鈕即可。 | B3: 通匯銀行代碼(7碼) | C3: 收款人帳號 (最多14位) | D3: 實際匯款金額 (自動計算) | E3: 收款人姓名 (最多35個中文字) | F3: 匯款附言欄 (最多35個中文字) | G3: 實收手續費 (自動計算)
A4: 範例 | B4: 0040037 | C4: 00400371234511 | D4: 10000 | E4: 陳老師 | F4: 五月份貨款 | G4: 30 | L4: 0 | M4: 0
D5: =IF(O5=15,N5,N5-G5) -> 10000 | G5: =IF(MID(B5,1,3)="013",IF(N5=0,0,手續費設定!B$4),VLOOKUP(N5,L:M,2,TRUE)) -> 30 | L5: 1 | M5: =手續費設定!B2 -> 30 | N5: 10000 | O5: 15
D6: =IF(O6=15,N6,N6-G6) -> 0 | G6: =IF(MID(B6,1,3)="013",IF(N6=0,0,手續費設定!B$4),VLOOKUP(N6,L:M,2,TRUE)) -> 0 | L6: 2000000 | M6: =手續費設定!B2 -> 30
D7: =IF(O7=15,N7,N7-G7) -> 0 | G7: =IF(MID(B7,1,3)="013",IF(N7=0,0,手續費設定!B$4),VLOOKUP(N7,L:M,2,TRUE)) -> 0 | L7: 2000001 | M7: =手續費設定!B2+手續費設定!B3 -> 40
D8: =IF(O8=15,N8,N8-G8) -> 0 | G8: =IF(MID(B8,1,3)="013",IF(N8=0,0,手續費設定!B$4),VLOOKUP(N8,L:M,2,TRUE)) -> 0 | L8: 3000000 | M8: =手續費設定!B2+手續費設定!B3 -> 40
D9: 0 | G9: =IF(MID(B9,1,3)="013",IF(N9=0,0,手續費設定!B$4),VLOOKUP(N9,L:M,2,TRUE)) -> 0 | L9: 3000001 | M9: =手續費設定!B2+(手續費設定!B3)*2 -> 50
D10: 0 | G10: =IF(MID(B10,1,3)="013",IF(N10=0,0,手續費設定!B$4),VLOOKUP(N10,L:M,2,TRUE)) -> 0 | L10: 4000000 | M10: =手續費設定!B2+(手續費設定!B3)*2 -> 50
D11: 0 | G11: =IF(MID(B11,1,3)="013",IF(N11=0,0,手續費設定!B$4),VLOOKUP(N11,L:M,2,TRUE)) -> 0 | L11: 4000001 | M11: =手續費設定!B2+(手續費設定!B3)*3 -> 60
D12: 0 | G12: =IF(MID(B12,1,3)="013",IF(N12=0,0,手續費設定!B$4),VLOOKUP(N12,L:M,2,TRUE)) -> 0 | L12: =L10+1000000 -> 5000000 | M12: =手續費設定!B2+(手續費設定!B3)*3 -> 60
D13: 0 | G13: =IF(MID(B13,1,3)="013",IF(N13=0,0,手續費設定!B$4),VLOOKUP(N13,L:M,2,TRUE)) -> 0 | L13: 5000001 | M13: =手續費設定!B2+(手續費設定!B3)*4 -> 70
D14: 0 | G14: =IF(MID(B14,1,3)="013",IF(N14=0,0,手續費設定!B$4),VLOOKUP(N14,L:M,2,TRUE)) -> 0 | L14: 6000000 | M14: =手續費設定!B2+(手續費設定!B3)*4 -> 70
D15: 0 | G15: =IF(MID(B15,1,3)="013",IF(N15=0,0,手續費設定!B$4),VLOOKUP(N15,L:M,2,TRUE)) -> 0 | L15: 6000001 | M15: =手續費設定!B2+(手續費設定!B3)*5 -> 80
D16: 0 | G16: =IF(MID(B16,1,3)="013",IF(N16=0,0,手續費設定!B$4),VLOOKUP(N16,L:M,2,TRUE)) -> 0 | L16: 7000000 | M16: =手續費設定!B2+(手續費設定!B3)*5 -> 80
D17: 0 | G17: =IF(MID(B17,1,3)="013",IF(N17=0,0,手續費設定!B$4),VLOOKUP(N17,L:M,2,TRUE)) -> 0 | L17: 7000001 | M17: =手續費設定!B2+(手續費設定!B3)*6 -> 90
D18: 0 | G18: =IF(MID(B18,1,3)="013",IF(N18=0,0,手續費設定!B$4),VLOOKUP(N18,L:M,2,TRUE)) -> 0 | L18: 8000000 | M18: =手續費設定!B2+(手續費設定!B3)*6 -> 90
D19: 0 | G19: =IF(MID(B19,1,3)="013",IF(N19=0,0,手續費設定!B$4),VLOOKUP(N19,L:M,2,TRUE)) -> 0 | L19: 8000001 | M19: =手續費設定!B2+(手續費設定!B3)*7 -> 100
D20: 0 | G20: =IF(MID(B20,1,3)="013",IF(N20=0,0,手續費設定!B$4),VLOOKUP(N20,L:M,2,TRUE)) -> 0 | L20: 9000000 | M20: =手續費設定!B2+(手續費設定!B3)*7 -> 100
D21: 0 | G21: =IF(MID(B21,1,3)="013",IF(N21=0,0,手續費設定!B$4),VLOOKUP(N21,L:M,2,TRUE)) -> 0 | L21: 9000001 | M21: =手續費設定!B2+(手續費設定!B3)*8 -> 110
D22: 0 | G22: =IF(MID(B22,1,3)="013",IF(N22=0,0,手續費設定!B$4),VLOOKUP(N22,L:M,2,TRUE)) -> 0 | L22: 10000000 | M22: =手續費設定!B2+(手續費設定!B3)*8 -> 110
D23: 0 | G23: =IF(MID(B23,1,3)="013",IF(N23=0,0,手續費設定!B$4),VLOOKUP(N23,L:M,2,TRUE)) -> 0 | L23: 10000001 | M23: =手續費設定!B2+(手續費設定!B3)*9 -> 120
D24: 0 | G24: =IF(MID(B24,1,3)="013",IF(N24=0,0,手續費設定!B$4),VLOOKUP(N24,L:M,2,TRUE)) -> 0 | L24: 11000000 | M24: =手續費設定!B2+(手續費設定!B3)*9 -> 120
D25: 0 | G25: =IF(MID(B25,1,3)="013",IF(N25=0,0,手續費設定!B$4),VLOOKUP(N25,L:M,2,TRUE)) -> 0 | L25: 11000001 | M25: =手續費設定!B2+(手續費設定!B3)*10 -> 130
D26: 0 | G26: =IF(MID(B26,1,3)="013",IF(N26=0,0,手續費設定!B$4),VLOOKUP(N26,L:M,2,TRUE)) -> 0 | L26: 12000000 | M26: =手續費設定!B2+(手續費設定!B3)*10 -> 130
D27: 0 | G27: =IF(MID(B27,1,3)="013",IF(N27=0,0,手續費設定!B$4),VLOOKUP(N27,L:M,2,TRUE)) -> 0 | L27: 12000001 | M27: =手續費設定!B2+(手續費設定!B3)*11 -> 140
D28: 0 | G28: =IF(MID(B28,1,3)="013",IF(N28=0,0,手續費設定!B$4),VLOOKUP(N28,L:M,2,TRUE)) -> 0 | L28: 13000000 | M28: =手續費設定!B2+(手續費設定!B3)*11 -> 140
D29: 0 | G29: =IF(MID(B29,1,3)="013",IF(N29=0,0,手續費設定!B$4),VLOOKUP(N29,L:M,2,TRUE)) -> 0 | L29: 13000001 | M29: =手續費設定!B2+(手續費設定!B3)*12 -> 150
D30: 0 | G30: =IF(MID(B30,1,3)="013",IF(N30=0,0,手續費設定!B$4),VLOOKUP(N30,L:M,2,TRUE)) -> 0 | L30: 14000000 | M30: =手續費設定!B2+(手續費設定!B3)*12 -> 150
D31: 0 | G31: =IF(MID(B31,1,3)="013",IF(N31=0,0,手續費設定!B$4),VLOOKUP(N31,L:M,2,TRUE)) -> 0 | L31: 14000001 | M31: =手續費設定!B2+(手續費設定!B3)*13 -> 160
D32: 0 | G32: =IF(MID(B32,1,3)="013",IF(N32=0,0,手續費設定!B$4),VLOOKUP(N32,L:M,2,TRUE)) -> 0 | L32: 15000000 | M32: =手續費設定!B2+(手續費設定!B3)*13 -> 160
D33: 0 | G33: =IF(MID(B33,1,3)="013",IF(N33=0,0,手續費設定!B$4),VLOOKUP(N33,L:M,2,TRUE)) -> 0 | L33: 15000001 | M33: =手續費設定!B2+(手續費設定!B3)*14 -> 170
D34: 0 | G34: =IF(MID(B34,1,3)="013",IF(N34=0,0,手續費設定!B$4),VLOOKUP(N34,L:M,2,TRUE)) -> 0 | L34: 16000000 | M34: =手續費設定!B2+(手續費設定!B3)*14 -> 170
D35: 0 | G35: =IF(MID(B35,1,3)="013",IF(N35=0,0,手續費設定!B$4),VLOOKUP(N35,L:M,2,TRUE)) -> 0 | L35: 16000001 | M35: =手續費設定!B2+(手續費設定!B3)*15 -> 180
D36: 0 | G36: =IF(MID(B36,1,3)="013",IF(N36=0,0,手續費設定!B$4),VLOOKUP(N36,L:M,2,TRUE)) -> 0 | L36: 17000000 | M36: =手續費設定!B2+(手續費設定!B3)*15 -> 180
D37: 0 | G37: =IF(MID(B37,1,3)="013",IF(N37=0,0,手續費設定!B$4),VLOOKUP(N37,L:M,2,TRUE)) -> 0 | L37: 17000001 | M37: =手續費設定!B2+(手續費設定!B3)*16 -> 190
D38: 0 | G38: =IF(MID(B38,1,3)="013",IF(N38=0,0,手續費設定!B$4),VLOOKUP(N38,L:M,2,TRUE)) -> 0 | L38: 18000000 | M38: =手續費設定!B2+(手續費設定!B3)*16 -> 190
D39: 0 | G39: =IF(MID(B39,1,3)="013",IF(N39=0,0,手續費設定!B$4),VLOOKUP(N39,L:M,2,TRUE)) -> 0 | L39: 18000001 | M39: =手續費設定!B2+(手續費設定!B3)*17 -> 200
D40: 0 | G40: =IF(MID(B40,1,3)="013",IF(N40=0,0,手續費設定!B$4),VLOOKUP(N40,L:M,2,TRUE)) -> 0 | L40: 19000000 | M40: =手續費設定!B2+(手續費設定!B3)*17 -> 200
D41: 0 | G41: =IF(MID(B41,1,3)="013",IF(N41=0,0,手續費設定!B$4),VLOOKUP(N41,L:M,2,TRUE)) -> 0 | L41: 19000001 | M41: =手續費設定!B2+(手續費設定!B3)*18 -> 210
D42: 0 | G42: =IF(MID(B42,1,3)="013",IF(N42=0,0,手續費設定!B$4),VLOOKUP(N42,L:M,2,TRUE)) -> 0 | L42: 20000000 | M42: =手續費設定!B2+(手續費設定!B3)*18 -> 210
D43: 0 | G43: =IF(MID(B43,1,3)="013",IF(N43=0,0,手續費設定!B$4),VLOOKUP(N43,L:M,2,TRUE)) -> 0 | L43: 20000001 | M43: =手續費設定!B2+(手續費設定!B3)*19 -> 220
D44: 0 | G44: =IF(MID(B44,1,3)="013",IF(N44=0,0,手續費設定!B$4),VLOOKUP(N44,L:M,2,TRUE)) -> 0 | L44: 21000000 | M44: =手續費設定!B2+(手續費設定!B3)*19 -> 220
D45: 0 | G45: =IF(MID(B45,1,3)="013",IF(N45=0,0,手續費設定!B$4),VLOOKUP(N45,L:M,2,TRUE)) -> 0 | L45: 21000001 | M45: =手續費設定!B2+(手續費設定!B3)*20 -> 230
D46: 0 | G46: =IF(MID(B46,1,3)="013",IF(N46=0,0,手續費設定!B$4),VLOOKUP(N46,L:M,2,TRUE)) -> 0 | L46: 22000000 | M46: =手續費設定!B2+(手續費設定!B3)*20 -> 230
D47: 0 | G47: =IF(MID(B47,1,3)="013",IF(N47=0,0,手續費設定!B$4),VLOOKUP(N47,L:M,2,TRUE)) -> 0 | L47: 22000001 | M47: =手續費設定!B2+(手續費設定!B3)*21 -> 240
D48: 0 | G48: =IF(MID(B48,1,3)="013",IF(N48=0,0,手續費設定!B$4),VLOOKUP(N48,L:M,2,TRUE)) -> 0 | L48: 23000000 | M48: =手續費設定!B2+(手續費設定!B3)*21 -> 240
D49: 0 | G49: =IF(MID(B49,1,3)="013",IF(N49=0,0,手續費設定!B$4),VLOOKUP(N49,L:M,2,TRUE)) -> 0 | L49: 23000001 | M49: =手續費設定!B2+(手續費設定!B3)*22 -> 250
D50: 0 | G50: =IF(MID(B50,1,3)="013",IF(N50=0,0,手續費設定!B$4),VLOOKUP(N50,L:M,2,TRUE)) -> 0 | L50: 24000000 | M50: =手續費設定!B2+(手續費設定!B3)*22 -> 250
D51: 0 | G51: =IF(MID(B51,1,3)="013",IF(N51=0,0,手續費設定!B$4),VLOOKUP(N51,L:M,2,TRUE)) -> 0 | L51: 24000001 | M51: =手續費設定!B2+(手續費設定!B3)*23 -> 260
D52: 0 | G52: =IF(MID(B52,1,3)="013",IF(N52=0,0,手續費設定!B$4),VLOOKUP(N52,L:M,2,TRUE)) -> 0 | L52: 25000000 | M52: =手續費設定!B2+(手續費設定!B3)*23 -> 260
D53: 0 | G53: =IF(MID(B53,1,3)="013",IF(N53=0,0,手續費設定!B$4),VLOOKUP(N53,L:M,2,TRUE)) -> 0 | L53: 25000001 | M53: =手續費設定!B2+(手續費設定!B3)*24 -> 270
D54: 0 | G54: =IF(MID(B54,1,3)="013",IF(N54=0,0,手續費設定!B$4),VLOOKUP(N54,L:M,2,TRUE)) -> 0 | L54: 26000000 | M54: =手續費設定!B2+(手續費設定!B3)*24 -> 270
D55: 0 | G55: =IF(MID(B55,1,3)="013",IF(N55=0,0,手續費設定!B$4),VLOOKUP(N55,L:M,2,TRUE)) -> 0 | L55: 26000001 | M55: =手續費設定!B2+(手續費設定!B3)*25 -> 280
D56: 0 | G56: =IF(MID(B56,1,3)="013",IF(N56=0,0,手續費設定!B$4),VLOOKUP(N56,L:M,2,TRUE)) -> 0 | L56: 27000000 | M56: =手續費設定!B2+(手續費設定!B3)*25 -> 280
D57: 0 | G57: =IF(MID(B57,1,3)="013",IF(N57=0,0,手續費設定!B$4),VLOOKUP(N57,L:M,2,TRUE)) -> 0 | L57: 27000001 | M57: =手續費設定!B2+(手續費設定!B3)*26 -> 290
D58: 0 | G58: =IF(MID(B58,1,3)="013",IF(N58=0,0,手續費設定!B$4),VLOOKUP(N58,L:M,2,TRUE)) -> 0 | L58: 28000000 | M58: =手續費設定!B2+(手續費設定!B3)*26 -> 290
D59: 0 | G59: =IF(MID(B59,1,3)="013",IF(N59=0,0,手續費設定!B$4),VLOOKUP(N59,L:M,2,TRUE)) -> 0 | L59: 28000001 | M59: =手續費設定!B2+(手續費設定!B3)*27 -> 300
D60: 0 | G60: =IF(MID(B60,1,3)="013",IF(N60=0,0,手續費設定!B$4),VLOOKUP(N60,L:M,2,TRUE)) -> 0 | L60: 29000000 | M60: =手續費設定!B2+(手續費設定!B3)*27 -> 300
D61: 0 | G61: =IF(MID(B61,1,3)="013",IF(N61=0,0,手續費設定!B$4),VLOOKUP(N61,L:M,2,TRUE)) -> 0 | L61: 29000001 | M61: =手續費設定!B2+(手續費設定!B3)*28 -> 310
D62: 0 | G62: =IF(MID(B62,1,3)="013",IF(N62=0,0,手續費設定!B$4),VLOOKUP(N62,L:M,2,TRUE)) -> 0 | L62: 30000000 | M62: =手續費設定!B2+(手續費設定!B3)*28 -> 310
D63: 0 | G63: =IF(MID(B63,1,3)="013",IF(N63=0,0,手續費設定!B$4),VLOOKUP(N63,L:M,2,TRUE)) -> 0 | L63: 30000001 | M63: =手續費設定!B2+(手續費設定!B3)*29 -> 320
D64: 0 | G64: =IF(MID(B64,1,3)="013",IF(N64=0,0,手續費設定!B$4),VLOOKUP(N64,L:M,2,TRUE)) -> 0 | L64: 31000000 | M64: =手續費設定!B2+(手續費設定!B3)*29 -> 320
D65: 0 | G65: =IF(MID(B65,1,3)="013",IF(N65=0,0,手續費設定!B$4),VLOOKUP(N65,L:M,2,TRUE)) -> 0 | L65: 31000001 | M65: =手續費設定!B2+(手續費設定!B3)*30 -> 330
D66: 0 | G66: =IF(MID(B66,1,3)="013",IF(N66=0,0,手續費設定!B$4),VLOOKUP(N66,L:M,2,TRUE)) -> 0 | L66: 32000000 | M66: =手續費設定!B2+(手續費設定!B3)*30 -> 330
D67: 0 | G67: =IF(MID(B67,1,3)="013",IF(N67=0,0,手續費設定!B$4),VLOOKUP(N67,L:M,2,TRUE)) -> 0 | L67: 32000001 | M67: =手續費設定!B2+(手續費設定!B3)*31 -> 340
D68: 0 | G68: =IF(MID(B68,1,3)="013",IF(N68=0,0,手續費設定!B$4),VLOOKUP(N68,L:M,2,TRUE)) -> 0 | L68: 33000000 | M68: =手續費設定!B2+(手續費設定!B3)*31 -> 340
D69: 0 | G69: =IF(MID(B69,1,3)="013",IF(N69=0,0,手續費設定!B$4),VLOOKUP(N69,L:M,2,TRUE)) -> 0 | L69: 33000001 | M69: =手續費設定!B2+(手續費設定!B3)*32 -> 350
D70: 0 | G70: =IF(MID(B70,1,3)="013",IF(N70=0,0,手續費設定!B$4),VLOOKUP(N70,L:M,2,TRUE)) -> 0 | L70: 34000000 | M70: =手續費設定!B2+(手續費設定!B3)*32 -> 350
D71: =IF(O71=15,N71,N71-G71) -> 0 | G71: =IF(MID(B71,1,3)="013",IF(N71=0,0,手續費設定!B$4),VLOOKUP(N71,L:M,2,TRUE)) -> 0 | L71: 34000001 | M71: =手續費設定!B2+(手續費設定!B3)*33 -> 360
D72: 0 | G72: =IF(MID(B72,1,3)="013",IF(N72=0,0,手續費設定!B$4),VLOOKUP(N72,L:M,2,TRUE)) -> 0 | L72: 35000000 | M72: =手續費設定!B2+(手續費設定!B3)*33 -> 360
D73: 0 | G73: =IF(MID(B73,1,3)="013",IF(N73=0,0,手續費設定!B$4),VLOOKUP(N73,L:M,2,TRUE)) -> 0 | L73: 35000001 | M73: =手續費設定!B2+(手續費設定!B3)*34 -> 370
D74: 0 | G74: =IF(MID(B74,1,3)="013",IF(N74=0,0,手續費設定!B$4),VLOOKUP(N74,L:M,2,TRUE)) -> 0 | L74: 36000000 | M74: =手續費設定!B2+(手續費設定!B3)*34 -> 370
D75: 0 | G75: =IF(MID(B75,1,3)="013",IF(N75=0,0,手續費設定!B$4),VLOOKUP(N75,L:M,2,TRUE)) -> 0 | L75: 36000001 | M75: =手續費設定!B2+(手續費設定!B3)*35 -> 380
D76: 0 | G76: =IF(MID(B76,1,3)="013",IF(N76=0,0,手續費設定!B$4),VLOOKUP(N76,L:M,2,TRUE)) -> 0 | L76: =L74+1000000 -> 37000000 | M76: =手續費設定!B2+(手續費設定!B3)*35 -> 380
D77: 0 | G77: =IF(MID(B77,1,3)="013",IF(N77=0,0,手續費設定!B$4),VLOOKUP(N77,L:M,2,TRUE)) -> 0 | L77: 37000001 | M77: =手續費設定!B2+(手續費設定!B3)*36 -> 390
D78: 0 | G78: =IF(MID(B78,1,3)="013",IF(N78=0,0,手續費設定!B$4),VLOOKUP(N78,L:M,2,TRUE)) -> 0 | L78: 38000000 | M78: =手續費設定!B2+(手續費設定!B3)*36 -> 390
D79: 0 | G79: =IF(MID(B79,1,3)="013",IF(N79=0,0,手續費設定!B$4),VLOOKUP(N79,L:M,2,TRUE)) -> 0 | L79: 38000001 | M79: =手續費設定!B2+(手續費設定!B3)*37 -> 400
D80: 0 | G80: =IF(MID(B80,1,3)="013",IF(N80=0,0,手續費設定!B$4),VLOOKUP(N80,L:M,2,TRUE)) -> 0 | L80: 39000000 | M80: =手續費設定!B2+(手續費設定!B3)*37 -> 400
D81: 0 | G81: =IF(MID(B81,1,3)="013",IF(N81=0,0,手續費設定!B$4),VLOOKUP(N81,L:M,2,TRUE)) -> 0 | L81: 39000001 | M81: =手續費設定!B2+(手續費設定!B3)*38 -> 410
D82: 0 | G82: =IF(MID(B82,1,3)="013",IF(N82=0,0,手續費設定!B$4),VLOOKUP(N82,L:M,2,TRUE)) -> 0 | L82: 40000000 | M82: =手續費設定!B2+(手續費設定!B3)*38 -> 410
D83: 0 | G83: =IF(MID(B83,1,3)="013",IF(N83=0,0,手續費設定!B$4),VLOOKUP(N83,L:M,2,TRUE)) -> 0 | L83: 40000001 | M83: =手續費設定!B2+(手續費設定!B3)*39 -> 420
D84: 0 | G84: =IF(MID(B84,1,3)="013",IF(N84=0,0,手續費設定!B$4),VLOOKUP(N84,L:M,2,TRUE)) -> 0 | L84: 41000000 | M84: =手續費設定!B2+(手續費設定!B3)*39 -> 420
D85: 0 | G85: =IF(MID(B85,1,3)="013",IF(N85=0,0,手續費設定!B$4),VLOOKUP(N85,L:M,2,TRUE)) -> 0 | L85: 41000001 | M85: =手續費設定!B2+(手續費設定!B3)*40 -> 430
D86: 0 | G86: =IF(MID(B86,1,3)="013",IF(N86=0,0,手續費設定!B$4),VLOOKUP(N86,L:M,2,TRUE)) -> 0 | L86: 42000000 | M86: =手續費設定!B2+(手續費設定!B3)*40 -> 430
D87: 0 | G87: =IF(MID(B87,1,3)="013",IF(N87=0,0,手續費設定!B$4),VLOOKUP(N87,L:M,2,TRUE)) -> 0 | L87: 42000001 | M87: =手續費設定!B2+(手續費設定!B3)*41 -> 440
D88: 0 | G88: =IF(MID(B88,1,3)="013",IF(N88=0,0,手續費設定!B$4),VLOOKUP(N88,L:M,2,TRUE)) -> 0 | L88: 43000000 | M88: =手續費設定!B2+(手續費設定!B3)*41 -> 440
D89: 0 | G89: =IF(MID(B89,1,3)="013",IF(N89=0,0,手續費設定!B$4),VLOOKUP(N89,L:M,2,TRUE)) -> 0 | L89: 43000001 | M89: =手續費設定!B2+(手續費設定!B3)*42 -> 450
D90: 0 | G90: =IF(MID(B90,1,3)="013",IF(N90=0,0,手續費設定!B$4),VLOOKUP(N90,L:M,2,TRUE)) -> 0 | L90: 44000000 | M90: =手續費設定!B2+(手續費設定!B3)*42 -> 450
D91: 0 | G91: =IF(MID(B91,1,3)="013",IF(N91=0,0,手續費設定!B$4),VLOOKUP(N91,L:M,2,TRUE)) -> 0 | L91: 44000001 | M91: =手續費設定!B2+(手續費設定!B3)*43 -> 460
D92: 0 | G92: =IF(MID(B92,1,3)="013",IF(N92=0,0,手續費設定!B$4),VLOOKUP(N92,L:M,2,TRUE)) -> 0 | L92: 45000000 | M92: =手續費設定!B2+(手續費設定!B3)*43 -> 460
D93: 0 | G93: =IF(MID(B93,1,3)="013",IF(N93=0,0,手續費設定!B$4),VLOOKUP(N93,L:M,2,TRUE)) -> 0 | L93: 45000001 | M93: =手續費設定!B2+(手續費設定!B3)*44 -> 470
D94: 0 | G94: =IF(MID(B94,1,3)="013",IF(N94=0,0,手續費設定!B$4),VLOOKUP(N94,L:M,2,TRUE)) -> 0 | L94: 46000000 | M94: =手續費設定!B2+(手續費設定!B3)*44 -> 470
D95: 0 | G95: =IF(MID(B95,1,3)="013",IF(N95=0,0,手續費設定!B$4),VLOOKUP(N95,L:M,2,TRUE)) -> 0 | L95: 46000001 | M95: =手續費設定!B2+(手續費設定!B3)*45 -> 480
D96: 0 | G96: =IF(MID(B96,1,3)="013",IF(N96=0,0,手續費設定!B$4),VLOOKUP(N96,L:M,2,TRUE)) -> 0 | L96: 47000000 | M96: =手續費設定!B2+(手續費設定!B3)*45 -> 480
D97: 0 | G97: =IF(MID(B97,1,3)="013",IF(N97=0,0,手續費設定!B$4),VLOOKUP(N97,L:M,2,TRUE)) -> 0 | L97: 47000001 | M97: =手續費設定!B2+(手續費設定!B3)*46 -> 490
D98: 0 | G98: =IF(MID(B98,1,3)="013",IF(N98=0,0,手續費設定!B$4),VLOOKUP(N98,L:M,2,TRUE)) -> 0 | L98: 48000000 | M98: =手續費設定!B2+(手續費設定!B3)*46 -> 490
D99: 0 | G99: =IF(MID(B99,1,3)="013",IF(N99=0,0,手續費設定!B$4),VLOOKUP(N99,L:M,2,TRUE)) -> 0 | L99: 48000001 | M99: =手續費設定!B2+(手續費設定!B3)*47 -> 500
D100: 0 | G100: =IF(MID(B100,1,3)="013",IF(N100=0,0,手續費設定!B$4),VLOOKUP(N100,L:M,2,TRUE)) -> 0 | L100: 49000000 | M100: =手續費設定!B2+(手續費設定!B3)*47 -> 500
D101: 0 | G101: =IF(MID(B101,1,3)="013",IF(N101=0,0,手續費設定!B$4),VLOOKUP(N101,L:M,2,TRUE)) -> 0 | L101: 49000001 | M101: =手續費設定!B2+(手續費設定!B3)*48 -> 510
D102: 0 | G102: =IF(MID(B102,1,3)="013",IF(N102=0,0,手續費設定!B$4),VLOOKUP(N102,L:M,2,TRUE)) -> 0 | L102: 50000000 | M102: =手續費設定!B2+(手續費設定!B3)*48 -> 510
D103: 0 | G103: =IF(MID(B103,1,3)="013",IF(N103=0,0,手續費設定!B$4),VLOOKUP(N103,L:M,2,TRUE)) -> 0 | L103: 50000001 | M103: N/A
D104: 0 | G104: =IF(MID(B104,1,3)="013",IF(N104=0,0,手續費設定!B$4),VLOOKUP(N104,L:M,2,TRUE)) -> 0
D105: 0 | G105: =IF(MID(B105,1,3)="013",IF(N105=0,0,手續費設定!B$4),VLOOKUP(N105,L:M,2,TRUE)) -> 0
D106: 0 | G106: =IF(MID(B106,1,3)="013",IF(N106=0,0,手續費設定!B$4),VLOOKUP(N106,L:M,2,TRUE)) -> 0
D107: 0 | G107: =IF(MID(B107,1,3)="013",IF(N107=0,0,手續費設定!B$4),VLOOKUP(N107,L:M,2,TRUE)) -> 0
D108: 0 | G108: =IF(MID(B108,1,3)="013",IF(N108=0,0,手續費設定!B$4),VLOOKUP(N108,L:M,2,TRUE)) -> 0
D109: 0 | G109: =IF(MID(B109,1,3)="013",IF(N109=0,0,手續費設定!B$4),VLOOKUP(N109,L:M,2,TRUE)) -> 0
D110: 0 | G110: =IF(MID(B110,1,3)="013",IF(N110=0,0,手續費設定!B$4),VLOOKUP(N110,L:M,2,TRUE)) -> 0
D111: 0 | G111: =IF(MID(B111,1,3)="013",IF(N111=0,0,手續費設定!B$4),VLOOKUP(N111,L:M,2,TRUE)) -> 0
D112: 0 | G112: =IF(MID(B112,1,3)="013",IF(N112=0,0,手續費設定!B$4),VLOOKUP(N112,L:M,2,TRUE)) -> 0
D113: 0 | G113: =IF(MID(B113,1,3)="013",IF(N113=0,0,手續費設定!B$4),VLOOKUP(N113,L:M,2,TRUE)) -> 0
D114: 0 | G114: =IF(MID(B114,1,3)="013",IF(N114=0,0,手續費設定!B$4),VLOOKUP(N114,L:M,2,TRUE)) -> 0
D115: 0 | G115: =IF(MID(B115,1,3)="013",IF(N115=0,0,手續費設定!B$4),VLOOKUP(N115,L:M,2,TRUE)) -> 0
D116: 0 | G116: =IF(MID(B116,1,3)="013",IF(N116=0,0,手續費設定!B$4),VLOOKUP(N116,L:M,2,TRUE)) -> 0
D117: 0 | G117: =IF(MID(B117,1,3)="013",IF(N117=0,0,手續費設定!B$4),VLOOKUP(N117,L:M,2,TRUE)) -> 0
D118: 0 | G118: =IF(MID(B118,1,3)="013",IF(N118=0,0,手續費設定!B$4),VLOOKUP(N118,L:M,2,TRUE)) -> 0
D119: 0 | G119: =IF(MID(B119,1,3)="013",IF(N119=0,0,手續費設定!B$4),VLOOKUP(N119,L:M,2,TRUE)) -> 0
D120: 0 | G120: =IF(MID(B120,1,3)="013",IF(N120=0,0,手續費設定!B$4),VLOOKUP(N120,L:M,2,TRUE)) -> 0
D121: 0 | G121: =IF(MID(B121,1,3)="013",IF(N121=0,0,手續費設定!B$4),VLOOKUP(N121,L:M,2,TRUE)) -> 0
D122: 0 | G122: =IF(MID(B122,1,3)="013",IF(N122=0,0,手續費設定!B$4),VLOOKUP(N122,L:M,2,TRUE)) -> 0
D123: 0 | G123: =IF(MID(B123,1,3)="013",IF(N123=0,0,手續費設定!B$4),VLOOKUP(N123,L:M,2,TRUE)) -> 0
D124: 0 | G124: =IF(MID(B124,1,3)="013",IF(N124=0,0,手續費設定!B$4),VLOOKUP(N124,L:M,2,TRUE)) -> 0
D125: 0 | G125: =IF(MID(B125,1,3)="013",IF(N125=0,0,手續費設定!B$4),VLOOKUP(N125,L:M,2,TRUE)) -> 0
D126: 0 | G126: =IF(MID(B126,1,3)="013",IF(N126=0,0,手續費設定!B$4),VLOOKUP(N126,L:M,2,TRUE)) -> 0
D127: 0 | G127: =IF(MID(B127,1,3)="013",IF(N127=0,0,手續費設定!B$4),VLOOKUP(N127,L:M,2,TRUE)) -> 0
D128: 0 | G128: =IF(MID(B128,1,3)="013",IF(N128=0,0,手續費設定!B$4),VLOOKUP(N128,L:M,2,TRUE)) -> 0
D129: 0 | G129: =IF(MID(B129,1,3)="013",IF(N129=0,0,手續費設定!B$4),VLOOKUP(N129,L:M,2,TRUE)) -> 0
D130: 0 | G130: =IF(MID(B130,1,3)="013",IF(N130=0,0,手續費設定!B$4),VLOOKUP(N130,L:M,2,TRUE)) -> 0
D131: 0 | G131: =IF(MID(B131,1,3)="013",IF(N131=0,0,手續費設定!B$4),VLOOKUP(N131,L:M,2,TRUE)) -> 0
D132: 0 | G132: =IF(MID(B132,1,3)="013",IF(N132=0,0,手續費設定!B$4),VLOOKUP(N132,L:M,2,TRUE)) -> 0
D133: 0 | G133: =IF(MID(B133,1,3)="013",IF(N133=0,0,手續費設定!B$4),VLOOKUP(N133,L:M,2,TRUE)) -> 0
D134: 0 | G134: =IF(MID(B134,1,3)="013",IF(N134=0,0,手續費設定!B$4),VLOOKUP(N134,L:M,2,TRUE)) -> 0
D135: =IF(O135=15,N135,N135-G135) -> 0 | G135: =IF(MID(B135,1,3)="013",IF(N135=0,0,手續費設定!B$4),VLOOKUP(N135,L:M,2,TRUE)) -> 0
D136: 0 | G136: =IF(MID(B136,1,3)="013",IF(N136=0,0,手續費設定!B$4),VLOOKUP(N136,L:M,2,TRUE)) -> 0
D137: 0 | G137: =IF(MID(B137,1,3)="013",IF(N137=0,0,手續費設定!B$4),VLOOKUP(N137,L:M,2,TRUE)) -> 0
D138: 0 | G138: =IF(MID(B138,1,3)="013",IF(N138=0,0,手續費設定!B$4),VLOOKUP(N138,L:M,2,TRUE)) -> 0
D139: 0 | G139: =IF(MID(B139,1,3)="013",IF(N139=0,0,手續費設定!B$4),VLOOKUP(N139,L:M,2,TRUE)) -> 0
D140: 0 | G140: =IF(MID(B140,1,3)="013",IF(N140=0,0,手續費設定!B$4),VLOOKUP(N140,L:M,2,TRUE)) -> 0
D141: 0 | G141: =IF(MID(B141,1,3)="013",IF(N141=0,0,手續費設定!B$4),VLOOKUP(N141,L:M,2,TRUE)) -> 0
D142: 0 | G142: =IF(MID(B142,1,3)="013",IF(N142=0,0,手續費設定!B$4),VLOOKUP(N142,L:M,2,TRUE)) -> 0
D143: 0 | G143: =IF(MID(B143,1,3)="013",IF(N143=0,0,手續費設定!B$4),VLOOKUP(N143,L:M,2,TRUE)) -> 0
D144: 0 | G144: =IF(MID(B144,1,3)="013",IF(N144=0,0,手續費設定!B$4),VLOOKUP(N144,L:M,2,TRUE)) -> 0
D145: 0 | G145: =IF(MID(B145,1,3)="013",IF(N145=0,0,手續費設定!B$4),VLOOKUP(N145,L:M,2,TRUE)) -> 0
D146: 0 | G146: =IF(MID(B146,1,3)="013",IF(N146=0,0,手續費設定!B$4),VLOOKUP(N146,L:M,2,TRUE)) -> 0
D147: 0 | G147: =IF(MID(B147,1,3)="013",IF(N147=0,0,手續費設定!B$4),VLOOKUP(N147,L:M,2,TRUE)) -> 0
D148: 0 | G148: =IF(MID(B148,1,3)="013",IF(N148=0,0,手續費設定!B$4),VLOOKUP(N148,L:M,2,TRUE)) -> 0
D149: 0 | G149: =IF(MID(B149,1,3)="013",IF(N149=0,0,手續費設定!B$4),VLOOKUP(N149,L:M,2,TRUE)) -> 0
D150: 0 | G150: =IF(MID(B150,1,3)="013",IF(N150=0,0,手續費設定!B$4),VLOOKUP(N150,L:M,2,TRUE)) -> 0
D151: 0 | G151: =IF(MID(B151,1,3)="013",IF(N151=0,0,手續費設定!B$4),VLOOKUP(N151,L:M,2,TRUE)) -> 0
D152: 0 | G152: =IF(MID(B152,1,3)="013",IF(N152=0,0,手續費設定!B$4),VLOOKUP(N152,L:M,2,TRUE)) -> 0
D153: 0 | G153: =IF(MID(B153,1,3)="013",IF(N153=0,0,手續費設定!B$4),VLOOKUP(N153,L:M,2,TRUE)) -> 0
D154: 0 | G154: =IF(MID(B154,1,3)="013",IF(N154=0,0,手續費設定!B$4),VLOOKUP(N154,L:M,2,TRUE)) -> 0
D155: 0 | G155: =IF(MID(B155,1,3)="013",IF(N155=0,0,手續費設定!B$4),VLOOKUP(N155,L:M,2,TRUE)) -> 0
D156: 0 | G156: =IF(MID(B156,1,3)="013",IF(N156=0,0,手續費設定!B$4),VLOOKUP(N156,L:M,2,TRUE)) -> 0
D157: 0 | G157: =IF(MID(B157,1,3)="013",IF(N157=0,0,手續費設定!B$4),VLOOKUP(N157,L:M,2,TRUE)) -> 0
D158: 0 | G158: =IF(MID(B158,1,3)="013",IF(N158=0,0,手續費設定!B$4),VLOOKUP(N158,L:M,2,TRUE)) -> 0
D159: 0 | G159: =IF(MID(B159,1,3)="013",IF(N159=0,0,手續費設定!B$4),VLOOKUP(N159,L:M,2,TRUE)) -> 0
D160: 0 | G160: =IF(MID(B160,1,3)="013",IF(N160=0,0,手續費設定!B$4),VLOOKUP(N160,L:M,2,TRUE)) -> 0
D161: 0 | G161: =IF(MID(B161,1,3)="013",IF(N161=0,0,手續費設定!B$4),VLOOKUP(N161,L:M,2,TRUE)) -> 0
D162: 0 | G162: =IF(MID(B162,1,3)="013",IF(N162=0,0,手續費設定!B$4),VLOOKUP(N162,L:M,2,TRUE)) -> 0
D163: 0 | G163: =IF(MID(B163,1,3)="013",IF(N163=0,0,手續費設定!B$4),VLOOKUP(N163,L:M,2,TRUE)) -> 0
D164: 0 | G164: =IF(MID(B164,1,3)="013",IF(N164=0,0,手續費設定!B$4),VLOOKUP(N164,L:M,2,TRUE)) -> 0
D165: 0 | G165: =IF(MID(B165,1,3)="013",IF(N165=0,0,手續費設定!B$4),VLOOKUP(N165,L:M,2,TRUE)) -> 0
D166: 0 | G166: =IF(MID(B166,1,3)="013",IF(N166=0,0,手續費設定!B$4),VLOOKUP(N166,L:M,2,TRUE)) -> 0
D167: 0 | G167: =IF(MID(B167,1,3)="013",IF(N167=0,0,手續費設定!B$4),VLOOKUP(N167,L:M,2,TRUE)) -> 0
D168: 0 | G168: =IF(MID(B168,1,3)="013",IF(N168=0,0,手續費設定!B$4),VLOOKUP(N168,L:M,2,TRUE)) -> 0
D169: 0 | G169: =IF(MID(B169,1,3)="013",IF(N169=0,0,手續費設定!B$4),VLOOKUP(N169,L:M,2,TRUE)) -> 0
D170: 0 | G170: =IF(MID(B170,1,3)="013",IF(N170=0,0,手續費設定!B$4),VLOOKUP(N170,L:M,2,TRUE)) -> 0
D171: 0 | G171: =IF(MID(B171,1,3)="013",IF(N171=0,0,手續費設定!B$4),VLOOKUP(N171,L:M,2,TRUE)) -> 0
D172: 0 | G172: =IF(MID(B172,1,3)="013",IF(N172=0,0,手續費設定!B$4),VLOOKUP(N172,L:M,2,TRUE)) -> 0
D173: 0 | G173: =IF(MID(B173,1,3)="013",IF(N173=0,0,手續費設定!B$4),VLOOKUP(N173,L:M,2,TRUE)) -> 0
D174: 0 | G174: =IF(MID(B174,1,3)="013",IF(N174=0,0,手續費設定!B$4),VLOOKUP(N174,L:M,2,TRUE)) -> 0
D175: 0 | G175: =IF(MID(B175,1,3)="013",IF(N175=0,0,手續費設定!B$4),VLOOKUP(N175,L:M,2,TRUE)) -> 0
D176: 0 | G176: =IF(MID(B176,1,3)="013",IF(N176=0,0,手續費設定!B$4),VLOOKUP(N176,L:M,2,TRUE)) -> 0
D177: 0 | G177: =IF(MID(B177,1,3)="013",IF(N177=0,0,手續費設定!B$4),VLOOKUP(N177,L:M,2,TRUE)) -> 0
D178: 0 | G178: =IF(MID(B178,1,3)="013",IF(N178=0,0,手續費設定!B$4),VLOOKUP(N178,L:M,2,TRUE)) -> 0
D179: 0 | G179: =IF(MID(B179,1,3)="013",IF(N179=0,0,手續費設定!B$4),VLOOKUP(N179,L:M,2,TRUE)) -> 0
D180: 0 | G180: =IF(MID(B180,1,3)="013",IF(N180=0,0,手續費設定!B$4),VLOOKUP(N180,L:M,2,TRUE)) -> 0
D181: 0 | G181: =IF(MID(B181,1,3)="013",IF(N181=0,0,手續費設定!B$4),VLOOKUP(N181,L:M,2,TRUE)) -> 0
D182: 0 | G182: =IF(MID(B182,1,3)="013",IF(N182=0,0,手續費設定!B$4),VLOOKUP(N182,L:M,2,TRUE)) -> 0
D183: 0 | G183: =IF(MID(B183,1,3)="013",IF(N183=0,0,手續費設定!B$4),VLOOKUP(N183,L:M,2,TRUE)) -> 0
D184: 0 | G184: =IF(MID(B184,1,3)="013",IF(N184=0,0,手續費設定!B$4),VLOOKUP(N184,L:M,2,TRUE)) -> 0
D185: 0 | G185: =IF(MID(B185,1,3)="013",IF(N185=0,0,手續費設定!B$4),VLOOKUP(N185,L:M,2,TRUE)) -> 0
D186: 0 | G186: =IF(MID(B186,1,3)="013",IF(N186=0,0,手續費設定!B$4),VLOOKUP(N186,L:M,2,TRUE)) -> 0
D187: 0 | G187: =IF(MID(B187,1,3)="013",IF(N187=0,0,手續費設定!B$4),VLOOKUP(N187,L:M,2,TRUE)) -> 0
D188: 0 | G188: =IF(MID(B188,1,3)="013",IF(N188=0,0,手續費設定!B$4),VLOOKUP(N188,L:M,2,TRUE)) -> 0
D189: 0 | G189: =IF(MID(B189,1,3)="013",IF(N189=0,0,手續費設定!B$4),VLOOKUP(N189,L:M,2,TRUE)) -> 0
D190: 0 | G190: =IF(MID(B190,1,3)="013",IF(N190=0,0,手續費設定!B$4),VLOOKUP(N190,L:M,2,TRUE)) -> 0
D191: 0 | G191: =IF(MID(B191,1,3)="013",IF(N191=0,0,手續費設定!B$4),VLOOKUP(N191,L:M,2,TRUE)) -> 0
D192: 0 | G192: =IF(MID(B192,1,3)="013",IF(N192=0,0,手續費設定!B$4),VLOOKUP(N192,L:M,2,TRUE)) -> 0
D193: 0 | G193: =IF(MID(B193,1,3)="013",IF(N193=0,0,手續費設定!B$4),VLOOKUP(N193,L:M,2,TRUE)) -> 0
D194: 0 | G194: =IF(MID(B194,1,3)="013",IF(N194=0,0,手續費設定!B$4),VLOOKUP(N194,L:M,2,TRUE)) -> 0
D195: 0 | G195: =IF(MID(B195,1,3)="013",IF(N195=0,0,手續費設定!B$4),VLOOKUP(N195,L:M,2,TRUE)) -> 0
D196: 0 | G196: =IF(MID(B196,1,3)="013",IF(N196=0,0,手續費設定!B$4),VLOOKUP(N196,L:M,2,TRUE)) -> 0
D197: 0 | G197: =IF(MID(B197,1,3)="013",IF(N197=0,0,手續費設定!B$4),VLOOKUP(N197,L:M,2,TRUE)) -> 0
D198: 0 | G198: =IF(MID(B198,1,3)="013",IF(N198=0,0,手續費設定!B$4),VLOOKUP(N198,L:M,2,TRUE)) -> 0
D199: =IF(O199=15,N199,N199-G199) -> 0 | G199: =IF(MID(B199,1,3)="013",IF(N199=0,0,手續費設定!B$4),VLOOKUP(N199,L:M,2,TRUE)) -> 0
D200: 0 | G200: =IF(MID(B200,1,3)="013",IF(N200=0,0,手續費設定!B$4),VLOOKUP(N200,L:M,2,TRUE)) -> 0
... 1804 more rows

Sheet 手續費設定
A1: 手續費設定
A2: 200萬(含)以下收 | B2: 30 | C2: 元
A3: 200萬以上每增加100萬收 | B3: 10 | C3: 元
A4: 自行帳號手續費 | B4: 0 | C4: 元
